bitfinex/quotes_ETHUSD_20240716
["timestamp","ask_amount","ask_price","bid_price","bid_amount"]
[1721145164006,2.2506,3484.5,3482.0,2.87189]
[1721145164218,0.58988097,3484.4,3482.0,2.87189]
[1721145164369,3.58988097,3484.4,3482.0,2.87189]
[1721145165070,3.58988097,3484.4,3482.1,5.7418]
[1721145165379,0.3589881,3484.3,3482.1,5.7418]
[1721145165683,0.58988097,3484.4,3482.1,5.7418]
[1721145165684,3.038,3484.4,3482.1,5.7418]
[1721145165863,3.407,3484.1,3482.1,5.7418]
[1721145166066,6.445,3484.1,3482.1,5.7418]
[1721145166280,3.038,3483.9,3482.1,5.7418]
[1721145166485,3.407,3483.4,3482.1,5.7418]
[1721145167023,0.03862268,3483.3,3482.1,5.7418]
[1721145167222,0.6445,3484.0,3482.1,5.7418]
[1721145167383,0.03730403,3483.9,3482.1,5.7418]
[1721145167583,0.4088804,3483.8,3482.1,5.7418]
[1721145168023,3.407,3482.7,3482.1,5.7418]
[1721145168234,3.407,3482.7,3480.6,2.87306]
[1721145168425,3.407,3482.7,3480.0,2.325]
[1721145168426,3.0,3482.6,3481.0,2.87272]
[1721145168585,3.0,3482.6,3481.0,2.87271]
[1721145168805,0.03718829,3482.5,3480.7,2.87291]
[1721145169146,0.03718829,3482.5,3480.5,2.87308]
[1721145169147,3.0,3483.3,3480.8,2.87288]
[1721145169442,3.407,3482.7,3480.1,2.87341]
[1721145169652,3.407,3482.7,3480.4,2.87322]
[1721145169803,3.0,3482.6,3480.2,2.87331]
[1721145170189,0.03594868,3482.5,3480.4,2.87322]
[1721145170303,0.03594868,3482.5,3480.2,2.87336]
[1721145170304,0.48435132,3482.4,3480.2,2.87336]
[1721145170500,0.48435132,3482.4,3480.0,5.19854]
[1721145170762,0.48435132,3482.4,3480.0,2.325]
[1721145170905,0.03594868,3482.3,3480.0,2.325]
[1721145171249,0.03594868,3482.3,3481.0,2.87272]
[1721145171408,0.03594868,3482.3,3480.7,2.87297]
[1721145171610,0.03594868,3482.3,3480.4,2.87322]
[1721145172056,0.03594868,3482.3,3480.5,2.87313]
[1721145172411,0.03594868,3482.3,3480.4,2.87322]
[1721145172645,0.03594868,3482.3,3480.5,2.87314]
[1721145172914,0.03594868,3482.3,3480.4,2.8732]
[1721145173345,0.03594868,3482.3,3480.5,0.55]
[1721145173641,0.48435132,3482.4,3480.7,2.87297]
[1721145173853,3.0,3483.3,3480.8,2.87289]
[1721145174061,3.0,3483.3,3480.6,2.87306]
[1721145174366,3.0,3483.3,3481.0,2.87271]
[1721145174367,0.03594868,3483.2,3481.0,2.87271]
[1721145174650,3.0,3483.3,3481.0,2.87271]
[1721145174863,0.6407,3483.2,3481.1,5.7453]
[1721145175214,3.038,3483.1,3481.1,8.61792]
[1721145175440,0.033124,3483.0,3481.1,8.61792]
[1721145175714,0.033124,3483.0,3481.1,5.7453]
[1721145175925,3.407,3482.6,3481.1,5.7445]
[1721145176118,0.3407,3482.5,3481.1,5.7445]
[1721145176320,3.038,3482.4,3481.1,5.7445]
[1721145176570,3.0,3482.3,3481.1,5.7445]
[1721145176919,0.03201987,3482.2,3481.1,5.7445]
[1721145177347,3.3407,3482.5,3481.1,5.7445]
[1721145177568,0.03095254,3482.1,3481.1,5.7445]
[1721145177862,0.03095254,3482.0,3481.1,5.7445]
[1721145178219,3.0,3482.4,3481.1,5.7445]
[1721145178562,0.03095254,3481.9,3481.1,5.7445]
[1721145178767,0.3407,3482.5,3481.1,5.7445]
[1721145178976,3.038,3482.9,3481.1,5.7445]
[1721145179259,3.038,3482.7,3481.1,5.7445]
[1721145179433,3.0,3482.6,3481.1,5.7445]
[1721145179917,0.03095254,3482.5,3481.1,5.7445]
[1721145180320,3.038,3483.1,3481.1,5.7445]
[1721145180573,0.03095254,3482.4,3481.1,5.7445]
[1721145180721,0.70857,3483.0,3481.5,2.8723]
[1721145180920,1.7546014,3484.7,3481.6,5.7453]
[1721145180921,3.038,3483.5,3481.6,5.7453]
[1721145181125,0.03095254,3482.9,3481.6,5.7453]
[1721145181443,3.038,3483.5,3481.6,5.7453]
[1721145181444,0.03095254,3482.8,3481.6,5.7453]
[1721145181863,3.0,3483.0,3481.6,5.7453]
[1721145182174,0.03095254,3482.7,3481.6,5.7453]
[1721145182464,3.0,3483.0,3481.6,5.7453]
[1721145182465,0.03095254,3482.6,3481.6,5.7453]
[1721145182967,3.0,3483.2,3481.6,8.61754]
[1721145183178,0.03095254,3482.5,3481.6,8.61754]
[1721145183351,0.6407,3483.1,3481.6,8.61754]
[1721145183661,0.03095254,3483.0,3481.6,5.7453]
[1721145184440,3.03095254,3483.0,3481.6,5.7453]
[1721145184624,0.37136726,3482.9,3481.6,5.7453]
[1721145185045,0.37136726,3482.9,3481.6,8.61751]
[1721145185246,0.03095254,3482.8,3482.3,2.87162]
[1721145185574,5.4554,3484.6,3482.5,2.87149]
[1721145185781,4.38984018,3484.6,3482.6,5.7436]
[1721145186066,0.03002022,3484.5,3482.6,5.7436]
[1721145186223,0.03002022,3484.5,3482.6,8.61499]
[1721145186433,0.03002022,3484.5,3482.6,5.7436]
[1721145186434,3.35026216,3484.4,3482.6,5.7436]
[1721145186674,3.038,3484.2,3482.6,5.7436]
[1721145187130,0.03032952,3484.1,3482.6,5.7436]
[1721145188270,0.03032952,3484.1,3482.6,8.61498]
[1721145188563,0.03032952,3484.1,3482.6,5.7436]
[1721145188774,3.68173295,3484.0,3482.6,5.7436]
[1721145188927,3.0,3483.9,3482.6,5.7436]
[1721145189132,3.407,3483.5,3482.6,5.7436]
[1721145189451,3.0,3483.4,3482.6,5.7436]
[1721145189660,3.03047307,3483.4,3482.6,5.7436]
[1721145189846,0.03047307,3483.4,3482.6,5.7436]
[1721145190251,0.64373295,3484.0,3482.6,5.7436]
[1721145190448,0.64373295,3484.0,3483.0,0.55892538]
[1721145190757,0.64373295,3484.0,3483.4,0.55892538]
[1721145190758,0.03047307,3483.9,3483.4,0.55892538]
[1721145191145,0.64373295,3484.0,3483.5,2.49733568]
[1721145191343,0.02939657,3483.8,3483.7,0.58167117]
[1721145191547,3.038,3484.9,3483.7,2.49731829]
[1721145191752,0.70456154,3484.7,3483.8,3.07898946]
[1721145191932,0.70456154,3484.7,3483.9,2.49731829]
[1721145191933,0.02943337,3484.6,3483.9,2.49731829]
[1721145192134,0.02943337,3484.6,3484.0,0.99893427]
[1721145192354,0.02943337,3484.6,3483.8,0.58167117]
[1721145192557,0.02943337,3484.6,3483.9,3.07863749]
[1721145192736,0.02943337,3484.6,3484.2,0.58167117]
[1721145192931,0.0546014,3484.7,3484.3,8.23776632]
[1721145193174,0.0546014,3484.7,3484.3,5.7408]
[1721145193344,0.02943337,3484.6,3484.3,5.7408]
[1721145193933,3.407,3484.4,3484.3,5.7408]
[1721145194173,6.79460348,3484.4,3484.3,5.7408]
[1721145194379,6.79460348,3484.4,3482.9,0.58167117]
[1721145194561,3.038,3484.2,3483.0,3.07926792]
[1721145194770,3.038,3484.2,3483.1,2.49759675]
[1721145194973,3.0,3484.1,3483.2,0.99902436]
[1721145195293,0.02955111,3484.1,3483.7,0.58167117]
[1721145195575,0.02955111,3484.1,3483.8,3.07897217]
[1721145195787,0.005,3484.6,3483.9,0.99902436]
[1721145196088,0.005,3484.6,3483.7,0.58167117]
[1721145196089,0.02955111,3484.5,3483.7,0.58167117]
[1721145196372,0.02955111,3484.5,3483.8,0.99882379]
[1721145196583,0.02955111,3484.5,3483.5,0.58167117]
[1721145196738,0.02955111,3484.5,3483.6,3.07876777]
[1721145196940,0.02955111,3484.5,3483.4,0.87250675]
[1721145196941,0.02955111,3484.5,3483.7,2.4970966]
[1721145197147,0.02955111,3484.5,3483.5,0.58167117]
[1721145197350,0.02955111,3484.5,3483.6,2.49708626]
[1721145197598,0.02955111,3484.5,3483.7,0.9988345]
[1721145197792,3.038,3484.3,3483.1,0.58146564]
[1721145197941,3.407,3483.7,3482.8,0.58146564]
[1721145198264,3.02955111,3483.6,3482.9,0.99906159]
[1721145198478,3.02955111,3483.6,3482.6,0.58146564]
[1721145198796,3.02955111,3483.6,3482.4,0.58146564]
[1721145199016,3.70107117,3483.5,3482.2,0.58146564]
[1721145199160,3.0,3483.4,3482.3,2.49802633]
[1721145199362,3.02953641,3483.4,3482.1,0.58146564]
[1721145199565,3.02953641,3483.4,3482.2,3.07956541]
[1721145199809,0.36926076,3483.3,3482.4,0.58146564]
[1721145199967,0.36926076,3483.3,3482.5,2.49809977]
[1721145200166,0.02953641,3483.2,3482.6,2.49809977]
[1721145200369,0.02953641,3483.2,3482.7,2.497779]
[1721145200674,3.407,3484.4,3482.8,2.49744243]
[1721145201007,3.86707,3484.3,3482.9,2.49744243]
[1721145201168,3.89654751,3484.3,3483.0,2.49744243]
[1721145201500,0.89654751,3484.3,3483.4,0.58146564]
[1721145201659,0.02947751,3484.3,3483.5,2.49735827]
[1721145201864,0.005,3484.6,3483.2,0.58146564]
[1721145202095,0.005,3484.6,3483.3,2.49712261]
[1721145202322,0.005,3484.6,3483.0,0.87219846]
[1721145202323,0.02837457,3484.5,3483.4,0.99884904]
[1721145202604,0.02837457,3484.5,3482.8,0.58146564]
[1721145202815,0.02837457,3484.5,3482.0,1.74639784]
[1721145202816,3.407,3484.4,3482.4,0.58146564]
[1721145203122,3.38203746,3484.3,3482.5,2.49753275]
[1721145203429,3.38203746,3484.3,3482.6,0.99902906]
[1721145203430,0.37246907,3484.3,3482.6,0.99902906]
[1721145203712,2.87102,3483.1,3482.2,2.87171]
[1721145204116,3.0,3483.0,3482.0,5.74374]
[1721145204327,6.745298,3483.0,3481.9,2.87197]
[1721145204481,0.02843161,3482.9,3482.2,2.87173]
[1721145204675,0.02843161,3482.9,3482.3,2.8716]
[1721145204882,2.89965161,3482.9,3481.8,2.87207]
[1721145205104,0.02843161,3482.9,3481.7,2.4174]
[1721145205318,2.87149,3482.6,3481.7,2.4174]
[1721145205485,2.87172,3482.3,3481.7,2.4174]
[1721145205691,0.02848868,3482.5,3481.7,2.4174]
[1721145205901,2.87175,3482.2,3481.7,2.4174]
[1721145206287,0.02846108,3482.1,3481.7,2.4174]
[1721145206740,0.02846108,3482.1,3481.8,2.87199]
[1721145206907,0.28999216,3482.6,3481.8,2.87199]
[1721145207223,0.28999216,3482.6,3480.8,2.4533]
[1721145207224,0.02846108,3482.5,3480.8,2.4533]
[1721145207404,0.02846108,3482.5,3481.8,2.87202]
[1721145207601,2.87133,3482.8,3481.9,5.744]
[1721145207818,0.02838191,3482.7,3482.2,2.4533]
[1721145208021,3.407,3484.3,3482.4,2.87152]
[1721145208022,2.87067,3483.5,3482.4,2.87152]
[1721145208184,3.407,3484.3,3482.5,5.743]
[1721145208185,3.18605984,3483.4,3482.5,5.743]
[1721145208389,0.02823284,3483.4,3482.5,5.743]
[1721145208641,2.87043,3483.8,3482.8,2.87117]
[1721145208939,3.407,3484.3,3482.9,5.7423]
[1721145208940,0.02831014,3483.3,3482.9,5.7423]
[1721145209087,2.87075,3483.5,3482.9,5.7423]
[1721145209287,0.02839298,3483.2,3482.9,5.7423]
[1721145209522,2.87034,3484.0,3483.1,2.871]
[1721145209836,0.02839666,3483.9,3483.2,8.61264]
[1721145209999,2.87011,3484.2,3483.3,2.87081]
[1721145210215,0.02845922,3484.1,3483.4,5.7415]
[1721145210390,2.87012,3484.2,3483.4,5.7415]
[1721145210589,0.0546014,3484.7,3483.4,5.7415]
[1721145210590,0.02845922,3484.1,3483.4,5.7415]
[1721145210831,2.86986,3484.5,3483.4,5.7415]
[1721145210832,2.87049,3483.8,3483.4,5.7415]
[1721145210984,2.87067,3483.5,3483.4,5.7415]
[1721145211192,0.574075,3483.7,3483.4,5.7415]
[1721145211399,2.87067,3483.5,3483.4,5.7415]
[1721145211706,5.74134,3483.5,3483.4,5.7415]
[1721145211887,5.76993906,3483.5,3483.4,5.7415]
[1721145212293,8.76993906,3483.5,3483.4,5.7415]
[1721145212501,5.89926906,3483.5,3483.4,5.7415]
[1721145212738,9.35986597,3483.5,3483.4,5.7415]
[1721145213026,6.48919597,3483.5,3483.4,5.7415]
[1721145213232,3.02859906,3483.5,3483.4,5.7415]
[1721145213588,0.02859906,3483.5,3483.4,5.7415]
[1721145213792,2.87056,3483.7,3483.4,5.7415]
[1721145213985,3.0,3483.6,3483.4,5.7415]
[1721145214215,0.02859906,3483.5,3483.4,5.7415]
[1721145214433,0.005,3484.6,3483.4,5.79890642]
[1721145214434,2.86991,3484.5,3483.4,5.79890642]
[1721145214607,2.89852067,3484.4,3483.7,2.4345]
[1721145214806,2.89852067,3484.4,3483.8,5.7409]
[1721145215020,0.02858067,3484.4,3483.9,2.87034]
[1721145215197,0.005,3484.6,3484.0,5.7405]
[1721145215198,2.87482,3484.6,3484.0,5.7405]
[1721145215456,2.86998,3484.4,3484.0,5.7405]
[1721145215597,0.02865976,3484.3,3484.0,5.7405]
[1721145215795,2.87481,3484.6,3484.0,5.7405]
[1721145216115,0.02865976,3484.5,3484.0,8.61074]
[1721145216316,0.02865976,3484.5,3484.0,5.7405]
[1721145216633,0.005,3484.6,3484.2,2.87007]
[1721145216794,0.005,3484.6,3484.5,5.7397]
[1721145216998,0.005,3484.6,3484.5,8.60955]
[1721145217416,0.005,3484.6,3484.5,5.7397]
[1721145217623,2.903635,3484.6,3484.5,5.7397]
[1721145217827,2.8696,3484.8,3484.5,5.7397]
[1721145217828,0.08916605,3485.2,3485.1,2.86935]
[1721145218129,0.08916605,3485.2,3485.1,11.4774]
[1721145218480,0.08916605,3485.2,3485.1,15.78145]
[1721145218608,0.08916605,3485.2,3485.1,16.33145]
[1721145218797,0.08916605,3485.2,3485.1,12.0274]
[1721145219290,0.08916605,3485.2,3485.1,14.89675]
[1721145219491,0.08916605,3485.2,3485.1,12.0274]
[1721145219743,0.08916605,3485.2,3485.1,15.0654]
[1721145219909,2.86805,3486.7,3485.3,8.77638]
[1721145220241,3.407,3487.5,3486.0,2.86861]
[1721145220396,1.23,3487.9,3486.2,2.86844]
[1721145220397,2.86767,3487.2,3486.2,2.86844]
[1721145220598,1.23,3487.9,3486.3,5.7367]
[1721145220916,2.86769,3487.2,3486.3,8.60506]
[1721145221303,2.86753,3487.4,3486.4,0.55]
[1721145221528,2.86773,3487.1,3486.5,5.7364]
[1721145221727,2.86787,3486.9,3486.5,5.7364]
[1721145222015,3.441003,3487.4,3486.5,5.7364]
[1721145222254,2.86776,3487.1,3486.5,5.7364]
[1721145222462,0.573483,3487.4,3486.5,5.7364]
[1721145222463,2.86803,3486.8,3486.5,5.7364]
[1721145222667,2.86788,3486.9,3486.5,5.7364]
[1721145222835,3.0,3486.8,3486.5,5.7364]
[1721145223370,3.440953,3487.4,3486.5,5.7364]
[1721145223371,3.0,3487.1,3486.5,5.7364]
[1721145223533,4.09948159,3488.0,3487.0,2.86776]
[1721145223721,2.86708,3487.9,3487.1,5.7354]
[1721145224083,4.09948159,3488.0,3487.1,5.7354]
[1721145224084,4.09949159,3488.0,3487.1,5.7354]
[1721145224281,2.86706,3487.9,3487.1,5.7354]
[1721145224564,2.86723,3487.7,3487.1,5.7354]
[1721145224773,1.23251159,3488.0,3487.1,5.7354]
[1721145225075,2.86719,3487.8,3487.1,5.7354]
[1721145225302,1.64245375,3488.0,3487.1,5.7354]
[1721145225303,1.23251159,3488.0,3487.1,5.7354]
[1721145225591,1.23251159,3488.0,3487.7,2.86716]
[1721145225592,0.6340703,3488.0,3487.7,2.86716]
[1721145225870,0.6340703,3488.0,3487.8,6.2843]
[1721145226026,0.1503181,3488.9,3487.9,0.05732489]
[1721145226230,0.1503181,3488.9,3488.5,2.86654]
[1721145226428,0.1503181,3488.9,3488.6,5.733]
[1721145226628,0.1503181,3488.9,3488.7,2.86632]
[1721145226880,0.1503181,3488.9,3488.8,6.2826]
[1721145227097,2.86542,3489.9,3488.9,2.3125]
[1721145227377,0.6340703,3490.5,3488.9,2.3125]
[1721145227378,2.86506,3490.4,3489.3,2.86586]
[1721145227601,0.6340703,3490.5,3489.4,5.78889804]
[1721145227749,0.6340703,3490.5,3489.5,0.05728539]
[1721145228067,2.86597,3491.5,3490.3,2.3125]
[1721145228279,0.0018,3491.5,3490.4,5.73]
[1721145228437,5.72982,3490.5,3490.4,5.73]
[1721145228630,2.86491,3490.5,3490.4,5.73]
[1721145229150,5.72982,3490.5,3490.4,5.73]
[1721145229347,5.72982,3490.5,3490.4,5.63]
[1721145229553,9.589283,3490.5,3490.4,5.63]
[1721145230005,12.454193,3490.5,3490.4,5.63]
[1721145230153,15.319103,3490.5,3490.4,2.765]
[1721145230358,14.45964,3490.5,3490.4,3.58e-06]
[1721145230546,17.32455,3490.5,3490.4,3.58e-06]
[1721145230981,2.86513,3490.3,3487.4,2.3147]
[1721145231157,0.7809,3490.4,3487.5,5.7326]
[1721145231158,2.86722,3487.7,3487.5,5.7326]
[1721145231360,2.8672,3487.8,3487.5,5.7326]
[1721145231575,3.0,3489.1,3487.7,2.3864]
[1721145231775,2.86629,3488.9,3487.8,8.60127]
[1721145231958,2.86637,3488.8,3487.8,5.7342]
[1721145232165,2.86654,3488.6,3487.8,5.7342]
[1721145232403,2.86659,3488.5,3487.8,5.7342]
[1721145232564,3.0,3489.3,3487.8,5.7342]
[1721145232750,2.86611,3489.1,3488.1,2.86687]
[1721145232957,2.86611,3489.1,3487.7,2.3864]
[1721145232958,3.0,3489.0,3488.2,5.7336]
[1721145233175,2.86649,3488.6,3488.2,5.7336]
[1721145233406,3.0,3489.7,3488.2,5.7336]
[1721145233407,5.73344,3488.3,3488.2,5.7336]
[1721145233554,8.60016,3488.3,3488.2,5.7336]
[1721145233756,2.86672,3488.3,3488.2,5.7336]
[1721145234051,2.86638,3488.8,3488.2,8.12]
[1721145234279,2.86641,3488.7,3488.2,8.12]
[1721145234679,2.86624,3488.9,3488.2,8.12]
[1721145234911,2.86672,3488.3,3488.2,8.12]
[1721145235114,5.73344,3488.3,3488.2,5.7336]
[1721145235298,8.60016,3488.3,3488.2,5.7336]
[1721145235505,17.87388,3488.3,3488.2,5.7336]
[1721145235830,2.86776,3487.1,3486.3,2.3864]
[1721145236180,2.86797,3486.8,3486.4,5.7361]
[1721145236917,0.02713879,3486.7,3486.4,6.54835]
[1721145237124,3.8794198,3491.1,3486.7,2.4202]
[1721145237330,2.86656,3488.5,3487.5,3.038]
[1721145237482,5.86665,3488.4,3487.6,8.7726]
[1721145237683,3.0,3488.4,3487.6,8.7726]
[1721145237998,3.5003603,3488.9,3487.7,1.164]
[1721145238181,0.02532954,3488.3,3488.1,2.86687]
[1721145238374,0.6340703,3488.9,3488.2,12.18839]
[1721145238580,0.6340703,3488.9,3488.2,5.7336]
[1721145238809,2.86654,3488.6,3488.2,5.7336]
[1721145239026,2.86638,3488.8,3488.2,5.7336]
[1721145239197,2.89169954,3488.8,3488.2,5.7336]
[1721145239394,0.02532954,3488.8,3488.2,5.7336]
[1721145240119,2.89169954,3488.8,3488.2,5.7336]
[1721145240342,0.02532954,3488.8,3488.2,5.7336]
[1721145240620,2.86663,3488.5,3488.2,5.7336]
[1721145240984,2.86672,3488.3,3488.2,5.7336]
[1721145241184,5.73344,3488.3,3488.2,5.7336]
[1721145241480,0.02611481,3488.3,3488.2,5.7336]
[1721145242016,3.5003703,3488.9,3488.2,5.7336]
[1721145242017,0.6340703,3488.9,3488.2,5.7336]
[1721145242734,5.73344,3488.3,3488.2,5.7336]
[1721145243223,5.75943546,3488.3,3488.2,5.7336]
[1721145243789,8.62615546,3488.3,3488.2,5.7336]
[1721145243997,9.26022576,3488.3,3488.2,5.7336]
[1721145244222,15.12694576,3488.3,3488.2,5.7336]
[1721145244551,15.12694576,3488.3,3486.2,2.3585]
[1721145244552,2.86788,3486.9,3486.2,2.3585]
[1721145244780,2.86806,3486.7,3486.2,2.3585]
[1721145244929,2.86834,3486.4,3486.2,2.3585]
[1721145245260,2.86812,3486.6,3486.2,2.3585]
[1721145245421,2.86821,3486.5,3486.3,5.7367]
[1721145245628,2.86826,3486.5,3486.3,5.7367]
[1721145246014,2.86812,3486.7,3486.3,5.7367]
[1721145246015,2.86796,3486.8,3486.3,5.7367]
[1721145246210,3.0,3487.8,3486.3,5.7367]
[1721145246417,0.6340703,3487.5,3486.3,6.54622]
[1721145246646,0.6340703,3487.5,3486.5,2.86817]
[1721145246850,3.5015203,3487.5,3486.6,5.7362]
[1721145247059,2.86749,3487.4,3486.6,5.7362]
[1721145247860,2.86749,3487.4,3486.6,8.7742]
[1721145248865,0.6340703,3487.5,3486.9,3.038]
[1721145249032,0.6340703,3487.5,3487.3,3.038]
[1721145249238,0.6340703,3487.5,3487.4,5.7349]
[1721145249563,3.5014503,3487.5,3487.4,5.7349]
[1721145249771,6.3688303,3487.5,3487.4,5.7349]
[1721145250067,9.2362103,3487.5,3487.4,5.7349]
[1721145250520,12.1035903,3487.5,3487.4,5.7349]
[1721145250725,15.1035903,3487.5,3487.4,5.7349]
[1721145251747,12.2362103,3487.5,3487.4,5.7349]
[1721145251953,12.26176477,3487.5,3487.4,5.7349]
[1721145252129,2.86779,3487.0,3485.1,2.3173]
[1721145252447,6.05772477,3487.5,3485.2,3.024]
[1721145252448,0.6340703,3486.6,3485.2,3.024]
[1721145252632,0.6340703,3486.6,3485.1,2.5778]
[1721145252633,0.6340703,3486.6,3485.6,3.024]
[1721145252962,2.86837,3486.3,3485.7,5.7377]
[1721145253145,0.02542397,3486.5,3485.7,5.7377]
[1721145253146,2.8687,3485.9,3485.7,5.7377]
[1721145253668,0.02542397,3485.8,3485.7,5.7377]
[1721145253971,5.76298397,3485.8,3485.7,5.7377]
[1721145254561,0.02542397,3485.8,3485.7,5.7377]
[1721145254877,0.02542397,3485.8,3485.7,6.17393849]
[1721145255075,0.6340703,3486.6,3485.7,6.17393849]
[1721145255076,2.86837,3486.3,3485.7,6.17393849]
[1721145255367,0.6340703,3486.6,3485.7,5.7377]
[1721145255368,2.89379387,3486.2,3485.7,5.7377]
[1721145255530,2.86878,3485.8,3485.7,5.7377]
[1721145255733,0.02533387,3486.2,3485.7,5.7377]
[1721145255734,2.86853,3486.1,3485.7,5.7377]
[1721145256182,2.86875,3485.9,3485.7,5.7377]
[1721145256484,5.73756,3485.8,3485.7,5.7377]
[1721145256644,8.60634,3485.8,3485.7,5.7377]
[1721145256834,5.76289387,3485.8,3485.7,5.7377]
[1721145257261,8.63167387,3485.8,3485.7,5.7377]
[1721145258058,11.50045387,3485.8,3485.7,5.7377]
[1721145258262,11.50045387,3485.8,3483.5,2.87065]
[1721145258263,2.86889,3485.7,3483.5,2.2903]
[1721145258472,3.02533387,3485.8,3483.5,2.2903]
[1721145258473,2.87035,3483.9,3483.5,2.2903]
[1721145258678,2.86938,3485.1,3483.5,2.2903]
[1721145258974,0.6340703,3485.5,3483.5,2.2903]
[1721145258975,2.86966,3484.8,3483.6,3.024]
[1721145259176,0.02523637,3485.0,3483.6,3.024]
[1721145259427,0.6340703,3485.5,3483.7,4.129563]
[1721145259705,0.6340703,3485.5,3484.0,5.89425]
[1721145259999,0.02523637,3485.4,3484.4,3.024]
[1721145260300,0.6340703,3485.5,3484.8,3.024]
[1721145260496,0.6340703,3485.5,3484.9,0.55]
[1721145261469,0.6340703,3485.5,3484.9,3.574]
[1721145261766,0.02514067,3485.4,3485.0,0.644359]
[1721145261965,0.02514067,3485.4,3485.1,0.55]
[1721145262607,0.02514067,3485.4,3485.1,3.41928]
[1721145262906,0.6340703,3485.5,3485.3,3.024]
[1721145263082,0.6340703,3485.5,3485.4,3.574]
[1721145263279,0.6340703,3485.5,3485.4,7.383479]
[1721145263504,0.6340703,3485.5,3485.4,4.514369]
[1721145263806,0.6340703,3485.5,3485.4,7.383479]
[1721145264105,0.6340703,3485.5,3485.4,10.252589]
[1721145265428,0.30002273,3488.0,3485.4,10.252589]
[1721145265429,0.30002273,3488.0,3485.8,2.86876]
[1721145265639,2.86731,3487.6,3486.2,5.3764]
[1721145265845,2.86772,3487.1,3486.3,0.55]
[1721145266011,2.26900775,3487.1,3486.3,0.55]
[1721145266207,2.8676,3487.3,3486.3,0.55]
[1721145266412,1.23,3487.5,3486.3,0.55]
[1721145266413,1.23,3487.5,3486.6,3.024]
[1721145266807,4.09738,3487.5,3486.6,3.024]
[1721145267298,1.23,3487.5,3486.7,0.55]
[1721145267506,0.02549567,3487.4,3486.7,0.55]
[1721145267807,2.86747,3487.4,3486.7,0.55]
[1721145268023,1.23,3487.8,3486.7,0.55]
[1721145268024,0.02549567,3487.3,3486.7,0.55]
[1721145268324,2.86731,3487.6,3486.7,0.55]
[1721145268645,2.86797,3486.8,3486.2,2.3524]
[1721145268932,0.02555264,3486.7,3486.2,2.3524]
[1721145269142,2.86821,3486.5,3486.2,2.3524]
[1721145269299,0.02555264,3486.7,3486.2,2.3524]
[1721145269497,2.8682,3486.6,3486.2,2.3524]
[1721145270032,0.02558756,3486.5,3486.2,2.3524]
[1721145270560,2.89380118,3486.4,3486.2,2.3524]
[1721145271101,0.02550118,3486.4,3486.2,2.3524]
[1721145271409,2.86768,3487.2,3486.2,2.58764]
[1721145271746,2.86755,3487.3,3486.4,3.024]
[1721145271956,1.23,3487.4,3486.5,3.574]
[1721145272311,1.23,3487.4,3486.5,6.44217]
[1721145272513,4.09747,3487.4,3486.2,2.58764]
[1721145272770,4.09747,3487.4,3486.3,3.569616]
[1721145272947,2.86769,3487.2,3486.3,4.119616]
[1721145273410,2.86772,3487.1,3486.3,4.119616]
[1721145273836,2.86764,3487.2,3486.3,4.119616]
[1721145274159,2.86788,3486.9,3486.2,2.58764]
[1721145274387,4.09748,3487.4,3486.3,3.024]
[1721145274641,1.23,3487.4,3486.3,3.024]
[1721145274753,1.23,3487.4,3486.2,2.58764]
[1721145274754,2.86755,3487.3,3486.4,0.45935257]
[1721145274948,5.86662,3488.5,3486.2,2.3524]
[1721145274949,2.86784,3487.0,3486.2,2.3524]
[1721145275252,1.23,3487.5,3486.2,2.3524]
[1721145275571,2.86721,3487.8,3485.5,4.2461]
[1721145275572,2.86845,3486.2,3485.5,4.2461]
[1721145275775,2.86828,3486.4,3485.5,4.2461]
[1721145275978,4.09746,3487.5,3485.6,2.86892]
[1721145276146,2.86788,3486.9,3485.9,3.024]
[1721145276660,2.86788,3486.9,3485.5,4.67071]
[1721145276661,2.86777,3487.1,3486.1,3.024]
[1721145276863,2.86777,3487.1,3486.2,0.55]
[1721145277065,2.86777,3487.1,3486.1,3.024]
[1721145277256,2.86777,3487.1,3486.2,4.218259]
[1721145277465,1.23,3487.5,3486.2,4.218259]
[1721145277466,1.23,3487.5,3486.2,0.644259]
[1721145277649,1.23,3487.5,3486.3,0.55]
[1721145277650,2.86765,3487.2,3486.3,0.55]
[1721145277884,2.86776,3487.1,3486.3,0.55]
[1721145278118,2.86776,3487.1,3486.2,0.55]
[1721145278400,2.86777,3487.1,3486.2,3.574]
[1721145278604,2.86777,3487.1,3486.2,4.505112]
[1721145278914,2.86794,3486.9,3485.5,4.67071]
[1721145279064,2.86796,3486.8,3485.5,7.53968]
[1721145279269,2.86796,3486.8,3485.7,5.8928]
[1721145279469,2.86796,3486.8,3485.8,0.55]
[1721145279768,2.86796,3486.8,3485.8,0.86397]
[1721145280113,2.86782,3487.0,3486.1,2.86847]
[1721145280318,1.23,3487.2,3486.2,3.574]
[1721145280468,4.09762,3487.3,3486.2,3.574]
[1721145280682,2.86773,3487.1,3486.2,6.44245]
[1721145280893,1.23,3487.3,3486.4,3.024]
[1721145281175,1.18,3487.3,3486.5,0.55]
[1721145281516,1.18,3487.3,3486.4,3.574]
[1721145281702,4.04756,3487.3,3486.4,6.44228]
[1721145282009,1.18,3487.3,3486.8,3.024]
[1721145282208,2.86585,3489.4,3486.7,2.2602]
[1721145282209,2.86592,3489.3,3486.9,1.07842]
[1721145282506,2.4079,3489.6,3486.7,2.2602]
[1721145282507,0.06,3487.3,3486.7,2.2602]
[1721145282682,0.06,3487.7,3486.7,2.2602]
[1721145282890,2.86745,3487.5,3486.7,2.2602]
[1721145283192,3.407,3488.5,3485.4,2.8691]
[1721145283193,2.86756,3487.3,3485.4,2.8691]